[Event "*** Titled Tuesday Blitz"]
[Site "Chess.com"]
[Date "2020.02.04"]
[Round "2"]
[White "AtabayevSaparmyrat"]
[Black "Yoshkinkot"]
[Result "1/2-1/2"]
[WhiteElo "2788"]
[BlackElo "2575"]
[TimeControl "180+2"]
[EndTime "9:25:05 PST"]
[Termination "Game drawn by repetition"]

1. d4 {[%clk 0:02:58.4]} 1... d5 {[%clk 0:03:00.5]} 2. Nf3 {[%clk 0:02:58.7]}
2... Nf6 {[%clk 0:03:01.4]} 3. c4 {[%clk 0:03:00.1]} 3... e6 {[%clk 0:03:02.4]}
4. Nc3 {[%clk 0:03:00.7]} 4... Nbd7 {[%clk 0:03:03.6]} 5. Bg5 {[%clk 0:03:01.2]}
5... c6 {[%clk 0:03:04.1]} 6. e3 {[%clk 0:03:01.9]} 6... Qa5 {[%clk 0:03:04.7]}
7. Nd2 {[%clk 0:03:02]} 7... dxc4 {[%clk 0:03:05.3]} 8. Bxf6 {[%clk 0:03:03.2]}
8... Nxf6 {[%clk 0:03:06.1]} 9. Nxc4 {[%clk 0:03:03.7]} 9... Qc7 {[%clk
0:03:07]} 10. Bd3 {[%clk 0:03:04.1]} 10... Be7 {[%clk 0:03:08.2]} 11. O-O {[%clk
0:03:04.5]} 11... O-O {[%clk 0:03:09.6]} 12. Rc1 {[%clk 0:03:03.8]} 12... Rd8
{[%clk 0:03:10.3]} 13. Qe2 {[%clk 0:03:00.2]} 13... c5 {[%clk 0:02:54.9]} 14.
Nb5 {[%clk 0:02:48.8]} 14... Qb8 {[%clk 0:02:50]} 15. dxc5 {[%clk 0:02:31.6]}
15... Bxc5 {[%clk 0:02:50.1]} 16. Rfd1 {[%clk 0:02:30.3]} 16... Bd7 {[%clk
0:02:43.5]} 17. Ncd6 {[%clk 0:02:18.8]} 17... Bxd6 {[%clk 0:02:15.1]} 18. Nxd6
{[%clk 0:02:19.6]} 18... Bc6 {[%clk 0:02:16.5]} 19. Nc4 {[%clk 0:02:13.1]} 19...
b6 {[%clk 0:01:08.8]} 20. f3 {[%clk 0:01:50.3]} 20... Bd5 {[%clk 0:01:02.6]} 21.
b3 {[%clk 0:01:42.9]} 21... Bxc4 {[%clk 0:01:00.5]} 22. Bxc4 {[%clk 0:01:43.8]}
22... Qe5 {[%clk 0:01:01.5]} 23. a4 {[%clk 0:01:39.6]} 23... g6 {[%clk
0:01:01.7]} 24. Rd3 {[%clk 0:01:36.3]} 24... Rxd3 {[%clk 0:00:54.1]} 25. Qxd3
{[%clk 0:01:38.2]} 25... Rc8 {[%clk 0:00:51.6]} 26. Rd1 {[%clk 0:01:38.3]} 26...
h5 {[%clk 0:00:43.9]} 27. h4 {[%clk 0:01:33.7]} 27... Kg7 {[%clk 0:00:34.9]} 28.
Qd4 {[%clk 0:01:32.8]} 28... Qxd4 {[%clk 0:00:35]} 29. Rxd4 {[%clk 0:01:34.7]}
29... Kf8 {[%clk 0:00:33.4]} 30. Kf2 {[%clk 0:01:31]} 30... Ke7 {[%clk 0:00:34]}
31. Ke2 {[%clk 0:01:23.5]} 31... Nd7 {[%clk 0:00:33.1]} 32. Kd2 {[%clk
0:01:12.4]} 32... Rc7 {[%clk 0:00:33]} 33. Be2 {[%clk 0:01:03.5]} 33... Nc5
{[%clk 0:00:29.3]} 34. Bd1 {[%clk 0:01:03.9]} 34... Rd7 {[%clk 0:00:22.1]} 35.
Kc3 {[%clk 0:01:03.3]} 35... Rxd4 {[%clk 0:00:21.6]} 36. Kxd4 {[%clk 0:01:03.7]}
36... Kd6 {[%clk 0:00:23]} 37. b4 {[%clk 0:01:01.3]} 37... Na6 {[%clk
0:00:21.1]} 38. Kc4 {[%clk 0:00:58]} 38... Nc7 {[%clk 0:00:22.5]} 39. e4 {[%clk
0:00:46.2]} 39... a6 {[%clk 0:00:21.5]} 40. Kd4 {[%clk 0:00:44.3]} 40... e5+
{[%clk 0:00:22.1]} 41. Kc4 {[%clk 0:00:43.8]} 41... Ne6 {[%clk 0:00:18.2]} 42.
Be2 {[%clk 0:00:41.1]} 42... Nd4 {[%clk 0:00:18.9]} 43. Bf1 {[%clk 0:00:41.3]}
43... f6 {[%clk 0:00:18.1]} 44. Kc3 {[%clk 0:00:41.6]} 44... a5 {[%clk
0:00:09.8]} 45. bxa5 {[%clk 0:00:37.4]} 45... bxa5 {[%clk 0:00:11.7]} 46. Bc4
{[%clk 0:00:37.7]} 46... g5 {[%clk 0:00:12.3]} 47. hxg5 {[%clk 0:00:29.2]} 47...
fxg5 {[%clk 0:00:13.2]} 48. Bf7 {[%clk 0:00:31.1]} 48... h4 {[%clk 0:00:14.5]}
49. Kc4 {[%clk 0:00:28.4]} 49... Kc6 {[%clk 0:00:14.4]} 50. Be8+ {[%clk
0:00:27.7]} 50... Kd6 {[%clk 0:00:15.9]} 51. Bh5 {[%clk 0:00:27.8]} 51... Kc6
{[%clk 0:00:16.4]} 52. Bg4 {[%clk 0:00:19.3]} 52... Kd6 {[%clk 0:00:17.5]} 53.
Bc8 {[%clk 0:00:18.1]} 53... Kc6 {[%clk 0:00:18.5]} 54. Bf5 {[%clk 0:00:18.9]}
54... Kd6 {[%clk 0:00:19.6]} 55. Bg4 {[%clk 0:00:19.7]} 55... Kc6 {[%clk
0:00:20.8]} 56. Bh5 {[%clk 0:00:21]} 56... Kd6 {[%clk 0:00:22.2]} 57. Bg4 {[%clk
0:00:21.7]} 57... Kc6 {[%clk 0:00:23.4]} 58. Bh5 {[%clk 0:00:22.5]} 58... Kd6
{[%clk 0:00:24.3]} 59. Bg4 {[%clk 0:00:23.7]} 1/2-1/2

[Event "*** Titled Tuesday Blitz"]
[Site "Chess.com"]
[Date "2020.02.04"]
[Round "2"]
[White "Ginzburg_Yakov"]
[Black "Aleksandr_Kozak"]
[Result "1-0"]
[WhiteElo "2525"]
[BlackElo "2263"]
[TimeControl "180+2"]
[EndTime "9:25:17 PST"]
[Termination "Ginzburg_Yakov won by resignation"]

1. e4 {[%clk 0:03:01.8]} 1... c6 {[%clk 0:02:59.9]} 2. d4 {[%clk 0:03:01.8]}
2... d5 {[%clk 0:03:00.3]} 3. Nc3 {[%clk 0:03:02.3]} 3... g6 {[%clk 0:03:00.4]}
4. g3 {[%clk 0:03:01.5]} 4... Bg7 {[%clk 0:03:01]} 5. Nge2 {[%clk 0:03:02.4]}
5... Bg4 {[%clk 0:02:54.2]} 6. Bg2 {[%clk 0:03:02.7]} 6... dxe4 {[%clk
0:02:53.2]} 7. Be3 {[%clk 0:03:02]} 7... f5 {[%clk 0:02:32]} 8. h3 {[%clk
0:02:54.1]} 8... Bxe2 {[%clk 0:02:28]} 9. Nxe2 {[%clk 0:02:52]} 9... e5 {[%clk
0:02:16.6]} 10. Qd2 {[%clk 0:02:46.2]} 10... Nd7 {[%clk 0:02:04.8]} 11. O-O-O
{[%clk 0:02:46.2]} 11... Nb6 {[%clk 0:02:03.5]} 12. b3 {[%clk 0:02:24.1]} 12...
Qd6 {[%clk 0:01:45.3]} 13. Qa5 {[%clk 0:02:16.2]} 13... Ne7 {[%clk 0:01:34.9]}
14. c4 {[%clk 0:02:02.9]} 14... Nd7 {[%clk 0:01:11.9]} 15. Kb1 {[%clk 0:01:54]}
15... O-O {[%clk 0:01:09.9]} 16. g4 {[%clk 0:01:35.9]} 16... b6 {[%clk
0:01:07.2]} 17. dxe5 {[%clk 0:01:33.6]} 17... Qxe5 {[%clk 0:01:07.5]} 18. Qxe5
{[%clk 0:01:34.1]} 18... Nxe5 {[%clk 0:01:08.4]} 19. Nf4 {[%clk 0:01:31]} 19...
Kf7 {[%clk 0:01:03.2]} 20. gxf5 {[%clk 0:01:27.5]} 20... gxf5 {[%clk 0:01:02.7]}
21. Rd6 {[%clk 0:01:21.2]} 21... Rfd8 {[%clk 0:01:01.9]} 22. Rhd1 {[%clk
0:01:19.7]} 22... Rxd6 {[%clk 0:01:02.5]} 23. Rxd6 {[%clk 0:01:20.2]} 23... N7g6
{[%clk 0:01:03.3]} 24. Nh5 {[%clk 0:01:02.5]} 24... Bh8 {[%clk 0:01:02.7]} 25.
c5 {[%clk 0:01:02.9]} 25... b5 {[%clk 0:01:03.1]} 26. Bf1 {[%clk 0:01:01.9]}
26... a6 {[%clk 0:01:03.5]} 27. Be2 {[%clk 0:01:02.6]} 27... Nd3 {[%clk
0:00:57.2]} 28. Rxc6 {[%clk 0:01:00.8]} 28... f4 {[%clk 0:00:57.8]} 29. Rc7+
{[%clk 0:00:54.8]} 29... Ke6 {[%clk 0:00:58.1]} 30. Bd2 {[%clk 0:00:43.8]} 30...
Rd8 {[%clk 0:00:50]} 31. Bxd3 {[%clk 0:00:44.3]} 31... Rxd3 {[%clk 0:00:49.4]}
32. Bxf4 {[%clk 0:00:45.5]} 32... Rxh3 {[%clk 0:00:43.9]} 33. Rxh7 {[%clk
0:00:44.3]} 33... Bc3 {[%clk 0:00:38.5]} 34. Be3 {[%clk 0:00:41.1]} 34... Ke5
{[%clk 0:00:37.1]} 35. c6 {[%clk 0:00:40.4]} 35... Ba5 {[%clk 0:00:38]} 36. c7
{[%clk 0:00:40.9]} 36... Bxc7 {[%clk 0:00:38.1]} 37. Rxc7 {[%clk 0:00:41.5]}
37... Kd6 {[%clk 0:00:36]} 38. Rh7 {[%clk 0:00:39.4]} 38... Ne5 {[%clk
0:00:36.5]} 39. Bf4 {[%clk 0:00:39.4]} 39... b4 {[%clk 0:00:34.8]} 40. Rh6+
{[%clk 0:00:38.6]} 40... Kc5 {[%clk 0:00:30.3]} 41. Bxe5 {[%clk 0:00:38.5]}
41... Rh1+ {[%clk 0:00:29.2]} 42. Kb2 {[%clk 0:00:39]} 42... Rf1 {[%clk
0:00:31.1]} 43. Bg3 {[%clk 0:00:39.2]} 43... e3 {[%clk 0:00:31.6]} 44. fxe3
{[%clk 0:00:38.6]} 44... Rh1 {[%clk 0:00:32.3]} 45. Bf4 {[%clk 0:00:37]} 45...
a5 {[%clk 0:00:32.3]} 46. Nf6 {[%clk 0:00:38]} 46... Rg1 {[%clk 0:00:31.3]} 47.
Nd7+ {[%clk 0:00:37.8]} 47... Kd5 {[%clk 0:00:31.7]} 48. Rd6+ {[%clk 0:00:37.1]}
48... Ke4 {[%clk 0:00:32.5]} 49. Rd2 {[%clk 0:00:37.2]} 49... Rg6 {[%clk
0:00:28.7]} 50. Nc5+ {[%clk 0:00:37.1]} 50... Kf3 {[%clk 0:00:29.3]} 51. Nd3
{[%clk 0:00:37.3]} 51... Rg8 {[%clk 0:00:24]} 52. Ne1+ {[%clk 0:00:36.2]} 52...
Ke4 {[%clk 0:00:24.5]} 53. Rd4+ {[%clk 0:00:37.2]} 53... Kf5 {[%clk 0:00:25.2]}
54. Rd5+ {[%clk 0:00:38.5]} 54... Ke6 {[%clk 0:00:24.3]} 55. Rxa5 {[%clk
0:00:39.5]} 55... Rg1 {[%clk 0:00:24.7]} 56. Re5+ {[%clk 0:00:37.2]} 56... Kf6
{[%clk 0:00:24]} 57. Nf3 {[%clk 0:00:36.8]} 57... Rg2+ {[%clk 0:00:24.4]} 58.
Kb1 {[%clk 0:00:37.7]} 58... Rf2 {[%clk 0:00:25.1]} 59. Nd4 {[%clk 0:00:38.7]}
59... Rg2 {[%clk 0:00:22.6]} 60. Re6+ {[%clk 0:00:39.5]} 60... Kf7 {[%clk
0:00:23.4]} 61. Rb6 {[%clk 0:00:39.8]} 61... Rg1+ {[%clk 0:00:22.6]} 62. Kb2
{[%clk 0:00:40]} 62... Rg2+ {[%clk 0:00:24.3]} 63. Nc2 {[%clk 0:00:40.9]} 63...
Ke7 {[%clk 0:00:24]} 64. Rxb4 {[%clk 0:00:41.7]} 64... Kd7 {[%clk 0:00:25.3]}
65. Rc4 {[%clk 0:00:42.9]} 1-0

[Event "*** Titled Tuesday Blitz"]
[Site "Chess.com"]
[Date "2020.02.04"]
[Round "2"]
[White "NemtsevIgor"]
[Black "Ariadna_Atreides"]
[Result "1-0"]
[WhiteElo "2406"]
[BlackElo "2053"]
[TimeControl "180+2"]
[EndTime "9:25:31 PST"]
[Termination "NemtsevIgor won by resignation"]

1. d4 {[%clk 0:03:01.9]} 1... e6 {[%clk 0:03:00.1]} 2. Bf4 {[%clk 0:03:01]} 2...
c5 {[%clk 0:02:58.5]} 3. e3 {[%clk 0:03:00.1]} 3... Nf6 {[%clk 0:02:57]} 4. c3
{[%clk 0:02:59.7]} 4... Be7 {[%clk 0:02:50.9]} 5. Nd2 {[%clk 0:02:59.7]} 5... d5
{[%clk 0:02:50.5]} 6. Ngf3 {[%clk 0:03:00.2]} 6... O-O {[%clk 0:02:47.8]} 7. Bd3
{[%clk 0:03:00.6]} 7... Nc6 {[%clk 0:02:47.1]} 8. Ne5 {[%clk 0:03:01.6]} 8...
Bd7 {[%clk 0:02:04.2]} 9. Qf3 {[%clk 0:03:00.8]} 9... cxd4 {[%clk 0:01:45]} 10.
exd4 {[%clk 0:03:00.1]} 10... Be8 {[%clk 0:01:38.2]} 11. Qh3 {[%clk 0:02:56.5]}
11... g6 {[%clk 0:01:37.7]} 12. Bh6 {[%clk 0:02:52.4]} 12... Nxe5 {[%clk
0:01:35.6]} 13. dxe5 {[%clk 0:02:51.3]} 13... Nd7 {[%clk 0:01:36.3]} 14. Bxf8
{[%clk 0:02:51.2]} 14... Bxf8 {[%clk 0:01:37.3]} 15. Nf3 {[%clk 0:02:46.3]}
15... Bg7 {[%clk 0:01:33]} 16. Qg3 {[%clk 0:02:45.5]} 16... Qc7 {[%clk
0:01:31.4]} 17. Bb5 {[%clk 0:02:28.8]} 17... Nxe5 {[%clk 0:01:21.4]} 18. Bxe8
{[%clk 0:02:29.2]} 18... Nxf3+ {[%clk 0:00:57]} 19. Qxf3 {[%clk 0:02:29.8]}
19... Rxe8 {[%clk 0:00:55]} 20. O-O {[%clk 0:02:30.5]} 20... Be5 {[%clk
0:00:50.6]} 21. g3 {[%clk 0:02:29]} 21... b5 {[%clk 0:00:47]} 22. Qe2 {[%clk
0:02:24.4]} 22... Rb8 {[%clk 0:00:40.5]} 23. Rfe1 {[%clk 0:02:11.1]} 23... Bd6
{[%clk 0:00:40.3]} 24. Qg4 {[%clk 0:02:04.4]} 24... a6 {[%clk 0:00:30.8]} 25. h4
{[%clk 0:02:04.7]} 25... h5 {[%clk 0:00:26.6]} 26. Qf3 {[%clk 0:01:58.2]} 26...
Kg7 {[%clk 0:00:21.5]} 27. Re2 {[%clk 0:01:54.1]} 27... a5 {[%clk 0:00:14.7]}
28. Kg2 {[%clk 0:01:45.6]} 28... Qb6 {[%clk 0:00:12.4]} 29. Qe3 {[%clk
0:01:41.3]} 29... Qc7 {[%clk 0:00:08]} 30. Rd1 {[%clk 0:01:38]} 30... b4 {[%clk
0:00:06.7]} 31. cxb4 {[%clk 0:01:38.3]} 31... axb4 {[%clk 0:00:07.4]} 32. Rc1
{[%clk 0:01:31.3]} 32... Qb7 {[%clk 0:00:08.3]} 33. Rec2 {[%clk 0:01:25.7]}
33... d4+ {[%clk 0:00:07.1]} 34. Qf3 {[%clk 0:01:26.9]} 34... Qxf3+ {[%clk
0:00:07.6]} 35. Kxf3 {[%clk 0:01:27.8]} 35... b3 {[%clk 0:00:08.3]} 36. axb3
{[%clk 0:01:27]} 36... Rxb3+ {[%clk 0:00:09]} 37. Kg2 {[%clk 0:01:28.1]} 37...
e5 {[%clk 0:00:09.3]} 38. Re2 {[%clk 0:01:19.9]} 38... Rb5 {[%clk 0:00:04.9]}
39. Rc6 {[%clk 0:01:19.6]} 39... Be7 {[%clk 0:00:03.1]} 40. f4 {[%clk
0:01:16.7]} 40... Bf6 {[%clk 0:00:03.2]} 41. fxe5 {[%clk 0:01:15.4]} 41... Bxe5
{[%clk 0:00:04.1]} 42. Ra6 {[%clk 0:00:54.1]} 42... d3 {[%clk 0:00:04.4]} 43.
Rd2 {[%clk 0:00:48.8]} 43... Rxb2 {[%clk 0:00:05.6]} 44. Rxb2 {[%clk 0:00:49.5]}
44... Bxb2 {[%clk 0:00:05.7]} 45. Rd6 {[%clk 0:00:50.5]} 45... Be5 {[%clk
0:00:05.7]} 46. Rxd3 {[%clk 0:00:51.3]} 46... f6 {[%clk 0:00:06.5]} 47. Kf3
{[%clk 0:00:52.5]} 47... Kh6 {[%clk 0:00:05.7]} 48. Ra3 {[%clk 0:00:50.3]} 48...
g5 {[%clk 0:00:06.5]} 49. Ke4 {[%clk 0:00:43.4]} 49... gxh4 {[%clk 0:00:06.6]}
50. gxh4 {[%clk 0:00:44.9]} 50... Kg6 {[%clk 0:00:07.5]} 51. Ra2 {[%clk
0:00:42.9]} 51... Bd6 {[%clk 0:00:07.4]} 52. Rg2+ {[%clk 0:00:43.1]} 52... Kf7
{[%clk 0:00:07.4]} 53. Kf5 {[%clk 0:00:44.4]} 53... Be5 {[%clk 0:00:08.2]} 54.
Ra2 {[%clk 0:00:42.2]} 54... Bd4 {[%clk 0:00:08.2]} 55. Ra8 {[%clk 0:00:41.6]}
55... Bf2 {[%clk 0:00:08.4]} 56. Rh8 {[%clk 0:00:39.6]} 56... Kg7 {[%clk
0:00:08.3]} 57. Rxh5 {[%clk 0:00:40.2]} 57... Kf7 {[%clk 0:00:08.4]} 58. Kg4
{[%clk 0:00:40]} 58... Ke6 {[%clk 0:00:08]} 59. Ra5 {[%clk 0:00:39.8]} 59... Bd4
{[%clk 0:00:08.8]} 60. Ra6+ {[%clk 0:00:40.4]} 60... Kf7 {[%clk 0:00:09.1]} 61.
Kf5 {[%clk 0:00:40.3]} 61... Be5 {[%clk 0:00:09.2]} 62. h5 {[%clk 0:00:41.1]}
62... Kg7 {[%clk 0:00:10.1]} 63. Ra7+ {[%clk 0:00:37.5]} 63... Kh6 {[%clk
0:00:10.4]} 64. Kg4 {[%clk 0:00:38.7]} 64... Bd4 {[%clk 0:00:10.1]} 65. Ra8
{[%clk 0:00:36.5]} 65... f5+ {[%clk 0:00:10.5]} 66. Kxf5 {[%clk 0:00:36.5]}
66... Kxh5 {[%clk 0:00:11.1]} 67. Rd8 {[%clk 0:00:36.9]} 67... Bg7 {[%clk
0:00:10.4]} 68. Rg8 {[%clk 0:00:35.9]} 68... Bc3 {[%clk 0:00:10.7]} 69. Rg3
{[%clk 0:00:36.2]} 69... Be1 {[%clk 0:00:11.1]} 70. Rh3+ {[%clk 0:00:36.9]}
70... Bh4 {[%clk 0:00:11.7]} 71. Rh1 {[%clk 0:00:38]} 71... Kh6 {[%clk
0:00:10.9]} 72. Rxh4+ {[%clk 0:00:39.1]} 1-0

[Event "*** Titled Tuesday Blitz"]
[Site "Chess.com"]
[Date "2020.02.04"]
[Round "2"]
[White "MaxLeto"]
[Black "kuli4ik"]
[Result "0-1"]
[WhiteElo "2357"]
[BlackElo "2856"]
[TimeControl "180+2"]
[EndTime "9:25:38 PST"]
[Termination "kuli4ik won by resignation"]

1. g4 {[%clk 0:02:46.1]} 1... d5 {[%clk 0:02:49.8]} 2. g5 {[%clk 0:02:44.2]}
2... Nc6 {[%clk 0:02:49.7]} 3. h4 {[%clk 0:02:44.9]} 3... e5 {[%clk 0:02:50.4]}
4. d3 {[%clk 0:02:45.1]} 4... Be6 {[%clk 0:02:50.4]} 5. Nc3 {[%clk 0:02:45.8]}
5... h6 {[%clk 0:02:51.5]} 6. Bg2 {[%clk 0:02:35.1]} 6... Be7 {[%clk 0:02:44.9]}
7. Nf3 {[%clk 0:02:31.4]} 7... hxg5 {[%clk 0:02:37.6]} 8. Nxg5 {[%clk
0:02:28.6]} 8... Bxg5 {[%clk 0:02:37.4]} 9. Bxg5 {[%clk 0:02:28.7]} 9... Qd7
{[%clk 0:02:38]} 10. e4 {[%clk 0:02:27.2]} 10... d4 {[%clk 0:02:33]} 11. Nd5
{[%clk 0:02:09.2]} 11... f6 {[%clk 0:02:27.6]} 12. Bd2 {[%clk 0:02:03.7]} 12...
Nge7 {[%clk 0:02:26.2]} 13. Qf3 {[%clk 0:01:52.7]} 13... O-O-O {[%clk
0:02:23.2]} 14. Nxe7+ {[%clk 0:01:44.1]} 14... Nxe7 {[%clk 0:02:19.5]} 15. Qg3
{[%clk 0:00:58.8]} 15... Rh7 {[%clk 0:02:05]} 16. O-O-O {[%clk 0:00:49.8]} 16...
Kb8 {[%clk 0:01:48.7]} 17. f4 {[%clk 0:00:50.2]} 17... Nc6 {[%clk 0:01:23.7]}
18. Bh3 {[%clk 0:00:48.7]} 18... Bxh3 {[%clk 0:01:22.7]} 19. Rxh3 {[%clk
0:00:50.6]} 19... Qe6 {[%clk 0:01:13.4]} 20. Kb1 {[%clk 0:00:50.4]} 20... a5
{[%clk 0:01:14.2]} 21. Rdh1 {[%clk 0:00:48.6]} 21... a4 {[%clk 0:01:12.5]} 22.
h5 {[%clk 0:00:45.8]} 22... Rdh8 {[%clk 0:01:11.4]} 23. Qg6 {[%clk 0:00:42.3]}
23... Ne7 {[%clk 0:00:58.1]} 24. Qg3 {[%clk 0:00:40.5]} 24... Nc6 {[%clk
0:00:57.6]} 25. Qg6 {[%clk 0:00:40.6]} 25... Qd7 {[%clk 0:00:54]} 26. Qg3 {[%clk
0:00:27.3]} 26... Qf7 {[%clk 0:00:51.8]} 27. Qg4 {[%clk 0:00:25.4]} 27... Qe8
{[%clk 0:00:42.2]} 28. Rh4 {[%clk 0:00:25.7]} 28... g6 {[%clk 0:00:37.4]} 29.
hxg6 {[%clk 0:00:19.8]} 29... Rxh4 {[%clk 0:00:38.2]} 30. Rxh4 {[%clk
0:00:21.5]} 30... Rxh4 {[%clk 0:00:39.7]} 31. Qxh4 {[%clk 0:00:23.1]} 31... Qxg6
{[%clk 0:00:41.1]} 32. f5 {[%clk 0:00:19.5]} 32... Qf7 {[%clk 0:00:32.9]} 33. a3
{[%clk 0:00:20.4]} 33... Ka7 {[%clk 0:00:29.4]} 34. Qh6 {[%clk 0:00:21.9]} 34...
Nb8 {[%clk 0:00:25.2]} 35. Be1 {[%clk 0:00:20.7]} 35... Nd7 {[%clk 0:00:25.5]}
36. Bh4 {[%clk 0:00:22.3]} 36... b5 {[%clk 0:00:21.5]} 37. Qg6 {[%clk
0:00:22.4]} 37... Qe7 {[%clk 0:00:19.7]} 38. Qg8 {[%clk 0:00:22.6]} 38... Kb7
{[%clk 0:00:20.1]} 39. Qd5+ {[%clk 0:00:23.7]} 39... c6 {[%clk 0:00:21.4]} 40.
Qg8 {[%clk 0:00:25.1]} 40... Kc7 {[%clk 0:00:21.6]} 41. Be1 {[%clk 0:00:25.3]}
41... Qf8 {[%clk 0:00:17.8]} 42. Ba5+ {[%clk 0:00:24.4]} 42... Kb7 {[%clk
0:00:19.1]} 43. Qh7 {[%clk 0:00:25.6]} 43... Kc8 {[%clk 0:00:18.4]} 44. Bb4
{[%clk 0:00:25.2]} 44... Qe8 {[%clk 0:00:15.1]} 45. Bd6 {[%clk 0:00:25.5]} 45...
Kb7 {[%clk 0:00:13.4]} 46. Qg7 {[%clk 0:00:24.9]} 46... Kb6 {[%clk 0:00:14.2]}
47. Be7 {[%clk 0:00:25]} 47... Kc7 {[%clk 0:00:07.2]} 48. Bxf6 {[%clk
0:00:26.3]} 48... Qh5 {[%clk 0:00:08.6]} 49. Bxe5+ {[%clk 0:00:26.9]} 49... Kc8
{[%clk 0:00:10]} 50. Bxd4 {[%clk 0:00:28]} 50... Qd1+ {[%clk 0:00:11]} 51. Ka2
{[%clk 0:00:29.4]} 51... Qxc2 {[%clk 0:00:12.9]} 52. Qg8+ {[%clk 0:00:28.5]}
52... Kc7 {[%clk 0:00:13.3]} 53. Qe6 {[%clk 0:00:10.2]} 53... Qxd3 {[%clk
0:00:13.9]} 54. Be5+ {[%clk 0:00:11.7]} 54... Kb7 {[%clk 0:00:14.7]} 55. Bc3
{[%clk 0:00:11.5]} 55... Nc5 {[%clk 0:00:11.4]} 56. Qf7+ {[%clk 0:00:07.2]}
56... Kb6 {[%clk 0:00:12.3]} 57. f6 {[%clk 0:00:06.3]} 57... Nxe4 {[%clk
0:00:10.1]} 58. Ba5+ {[%clk 0:00:05]} 58... Ka6 {[%clk 0:00:08.6]} 59. Qe6
{[%clk 0:00:03.8]} 59... Qb3+ {[%clk 0:00:07.5]} 60. Qxb3 {[%clk 0:00:04.4]}
60... axb3+ {[%clk 0:00:09.4]} 61. Kxb3 {[%clk 0:00:05.9]} 61... Kxa5 {[%clk
0:00:10.9]} 62. f7 {[%clk 0:00:07.1]} 62... Nc5+ {[%clk 0:00:12.3]} 63. Kc3
{[%clk 0:00:06.8]} 63... Nd7 {[%clk 0:00:14.2]} 64. Kd4 {[%clk 0:00:08.2]} 64...
Kb6 {[%clk 0:00:15.2]} 65. b4 {[%clk 0:00:09.1]} 65... Kc7 {[%clk 0:00:16.4]}
66. a4 {[%clk 0:00:07.6]} 66... bxa4 {[%clk 0:00:17.1]} 67. Kc4 {[%clk
0:00:08.9]} 67... Kb6 {[%clk 0:00:18.5]} 0-1